fUST/lending_fUST_20250902
["ID","MTS","AMOUNT","RATE_DAILY","PERIOD"]
[382831070,1756749046904,-216.39138844,0.00013698,2]
[382831071,1756749046914,-480.0,0.00013698,2]
[382831072,1756749046923,-158.56738434,0.00013698,2]
[382831073,1756749046935,-321.43261566,0.00013698,2]
[382831074,1756749046945,-160.63,0.00013698,2]
[382831075,1756749046955,-480.0,0.00013698,2]
[382831076,1756749046965,-164.03,0.00013698,2]
[382831077,1756749046975,-170.21082305,0.00013698,2]
[382831078,1756749046987,-309.78917695,0.00013698,2]
[382831079,1756749046997,-310.11435556,0.00013698,2]
[382831080,1756749047022,-169.88564444,0.00013698,2]
[382831081,1756749047035,-480.0,0.00013698,2]
[382831082,1756749047045,-480.0,0.00013698,2]
[382831083,1756749047055,-480.0,0.00013698,2]
[382831084,1756749047066,-480.0,0.00013698,2]
[382831085,1756749047078,-480.0,0.00013698,2]
[382831086,1756749047088,-480.0,0.00013698,2]
[382831087,1756749047098,-480.0,0.00013698,2]
[382831088,1756749047110,-480.0,0.00013698,2]
[382831089,1756749047120,-480.0,0.00013698,2]
[382831090,1756749047130,-197.333156,0.00013698,2]
[382831092,1756749047140,-197.333156,0.00013698,2]
[382831094,1756749047150,-197.333156,0.00013698,2]
[382831096,1756749047159,-480.0,0.00013698,2]
[382831098,1756749047169,-197.333156,0.00013698,2]
[382831100,1756749047181,-197.333156,0.00013698,2]
[382831102,1756749047190,-197.333156,0.00013698,2]
[382831104,1756749047203,-197.333156,0.00013698,2]
[382831106,1756749047214,-197.333156,0.00013698,2]
[382831108,1756749047225,-590.85,0.00013698,2]
[382831110,1756749047235,-480.0,0.00013698,2]
[382831112,1756749047245,-341.05,0.00013698,2]
[382831114,1756749047255,-528.21,0.00013698,2]
[382831116,1756749047265,-480.0,0.00013698,2]
[382831118,1756749047275,-480.0,0.00013698,2]
[382831120,1756749047285,-555.13,0.00013698,2]
[382831122,1756749047295,-480.0,0.00013698,2]
[382831124,1756749047304,-480.0,0.00013698,2]
[382831126,1756749047315,-480.0,0.00013698,2]
[382831128,1756749047325,-486.02,0.00013698,2]
[382831130,1756749047335,-480.0,0.00013698,2]
[382831132,1756749047344,-480.0,0.00013698,2]
[382831154,1756749047537,-480.0,0.00013698,2]
[382831156,1756749047547,-480.0,0.00013698,2]
[382831158,1756749047557,-480.0,0.00013698,2]
[382831160,1756749047567,-480.0,0.00013698,2]
[382831162,1756749047576,-480.0,0.00013698,2]
[382831164,1756749047586,-480.0,0.00013698,2]
[382831165,1756749047595,-480.0,0.00013698,2]
[382831166,1756749047604,-480.0,0.00013698,2]
[382831167,1756749047614,-596.87,0.00013698,2]
[382831169,1756749047623,-480.0,0.00013698,2]
[382831171,1756749047632,-514.68,0.00013698,2]
[382831173,1756749047641,-480.0,0.00013698,2]
[382831175,1756749047651,-499.99,0.00013698,2]
[382831177,1756749047661,-480.0,0.00013698,2]
[382831179,1756749047670,-480.0,0.00013698,2]
[382831181,1756749047679,-640.66,0.00013698,2]
[382831183,1756749047688,-480.0,0.00013698,2]
[382831185,1756749047697,-677.2,0.00013698,2]
[382831187,1756749047707,-480.0,0.00013698,2]
[382831189,1756749047717,-558.76,0.00013698,2]
[382831191,1756749047727,-480.0,0.00013698,2]
[382831193,1756749047736,-480.0,0.00013698,2]
[382831195,1756749047746,-605.58,0.00013698,2]
[382831197,1756749047756,-480.0,0.00013698,2]
[382831198,1756749047766,-480.0,0.00013698,2]
[382831199,1756749047776,-480.0,0.00013698,2]
[382831201,1756749047786,-480.0,0.00013698,2]
[382831202,1756749047796,-480.0,0.00013698,2]
[382831203,1756749047806,-549.19,0.00013698,2]
[382831204,1756749047818,-480.0,0.00013698,2]
[382831205,1756749047828,-480.0,0.00013698,2]
[382831206,1756749047837,-800.92,0.00013698,2]
[382831207,1756749047847,-480.0,0.00013698,2]
[382831208,1756749047856,-480.0,0.00013698,2]
[382831209,1756749047867,-480.0,0.00013698,2]
[382831210,1756749047876,-641.33,0.00013698,2]
[382831211,1756749047885,-480.0,0.00013698,2]
[382831213,1756749047895,-645.0,0.00013698,2]
[382831215,1756749047905,-480.0,0.00013698,2]
[382831217,1756749047915,-1582.94,0.00013698,2]
[382831219,1756749047924,-480.0,0.00013698,2]
[382831221,1756749047934,-560.99,0.00013698,2]
[382831223,1756749047943,-480.0,0.00013698,2]
[382831225,1756749047954,-1957.4,0.00013698,2]
[382831227,1756749047964,-551.88,0.00013698,2]
[382831229,1756749047973,-480.0,0.00013698,2]
[382831231,1756749047983,-686.72,0.00013698,2]
[382831233,1756749047992,-480.0,0.00013698,2]
[382831235,1756749048002,-480.0,0.00013698,2]
[382831237,1756749048012,-480.0,0.00013698,2]
[382831239,1756749048022,-480.0,0.00013698,2]
[382831241,1756749048034,-480.0,0.00013698,2]
[382831243,1756749048043,-606.06,0.00013698,2]
[382831245,1756749048052,-480.0,0.00013698,2]
[382831247,1756749048062,-504.15,0.00013698,2]
[382831249,1756749048071,-480.0,0.00013698,2]
[382831250,1756749048081,-480.0,0.00013698,2]
[382831252,1756749048091,-873.22,0.00013698,2]
[382831254,1756749048100,-504.05,0.00013698,2]
[382831256,1756749048110,-480.0,0.00013698,2]
[382831258,1756749048119,-480.0,0.00013698,2]
[382831260,1756749048129,-480.0,0.00013698,2]
[382831262,1756749048138,-538.94,0.00013698,2]
[382831264,1756749048148,-3261.24,0.00013698,2]
[382831266,1756749048159,-480.0,0.00013698,2]
[382831268,1756749048168,-1641.95,0.00013698,2]
[382831270,1756749048178,-1433.14,0.00013698,2]
[382831272,1756749048188,-480.0,0.00013698,2]
[382831274,1756749048198,-480.0,0.00013698,2]
[382831276,1756749048208,-480.0,0.00013698,2]
[382831278,1756749048217,-480.0,0.00013698,2]
[382831280,1756749048227,-600.23,0.00013698,2]
[382831282,1756749048237,-1135.21,0.00013698,2]
[382831284,1756749048247,-480.0,0.00013698,2]
[382831286,1756749048259,-481.14969689,0.00013698,2]
[382831288,1756749048268,-555.23,0.00013698,2]
[382831290,1756749048278,-480.0,0.00013698,2]
[382831292,1756749048288,-480.0,0.00013698,2]
[382831294,1756749048298,-249.5,0.00013698,2]
[382831297,1756749048307,-480.0,0.00013698,2]
[382831299,1756749048318,-252.74998796,0.00013698,2]
[382831301,1756749048327,-1222.45,0.00013698,2]
[382831302,1756749048337,-480.0,0.00013698,2]
[382831305,1756749048347,-469.3,0.00013698,2]
[382831307,1756749048356,-245.0,0.00013698,2]
[382831309,1756749048366,-480.0,0.00013698,2]
[382831311,1756749048375,-633.36,0.00013698,2]
[382831313,1756749048385,-480.0,0.00013698,2]
[382831315,1756749048394,-288.37,0.00013698,2]
[382831316,1756749048403,-480.0,0.00013698,2]
[382831318,1756749048412,-480.0,0.00013698,2]
[382831320,1756749048422,-480.0,0.00013698,2]
[382831322,1756749048431,-480.0,0.00013698,2]
[382831324,1756749048441,-542.75,0.00013698,2]
[382831326,1756749048450,-480.0,0.00013698,2]
[382831328,1756749048460,-5027.09,0.00013698,2]
[382831330,1756749048470,-480.0,0.00013698,2]
[382831332,1756749048479,-480.0,0.00013698,2]
[382831334,1756749048488,-480.0,0.00013698,2]
[382831336,1756749048497,-480.0,0.00013698,2]
[382831338,1756749048507,-689.11,0.00013698,2]
[382831340,1756749048517,-636.5,0.00013698,2]
[382831342,1756749048526,-480.0,0.00013698,2]
[382831344,1756749048535,-480.0,0.00013698,2]
[382831346,1756749048545,-480.0,0.00013698,2]
[382831348,1756749048554,-480.0,0.00013698,2]
[382831350,1756749048564,-492.13,0.00013698,2]
[382831352,1756749048573,-480.0,0.00013698,2]
[382831354,1756749048584,-480.0,0.00013698,2]
[382831356,1756749048593,-480.0,0.00013698,2]
[382831358,1756749048603,-584.53,0.00013698,2]
[382831360,1756749048612,-1209.12,0.00013698,2]
[382831362,1756749048622,-480.0,0.00013698,2]
[382831364,1756749048632,-1546.45,0.00013698,2]
[382831366,1756749048642,-625.88,0.00013698,2]
[382831369,1756749048652,-480.0,0.00013698,2]
[382831371,1756749048662,-1641.93,0.00013698,2]
[382831372,1756749048672,-480.0,0.00013698,2]
[382831374,1756749048682,-480.0,0.00013698,2]
[382831376,1756749048692,-675.19,0.00013698,2]
[382831379,1756749048702,-3051.95,0.00013698,2]
[382831380,1756749048711,-480.0,0.00013698,2]
[382831382,1756749048721,-480.0,0.00013698,2]
[382831384,1756749048731,-480.0,0.00013698,2]
[382831387,1756749048741,-480.0,0.00013698,2]
[382831388,1756749048751,-462.91179868,0.00013698,2]
[382831390,1756749048760,-480.0,0.00013698,2]
[382831392,1756749048771,-480.0,0.00013698,2]
[382831394,1756749048781,-480.0,0.00013698,2]
[382831396,1756749048791,-480.0,0.00013698,2]
[382831398,1756749048801,-480.0,0.00013698,2]
[382831400,1756749048812,-480.0,0.00013698,2]
[382831402,1756749048825,-480.0,0.00013698,2]
[382831404,1756749048834,-501.19,0.00013698,2]
[382831406,1756749048844,-1933.72,0.00013698,2]
[382831408,1756749048854,-480.0,0.00013698,2]
[382831410,1756749048864,-480.0,0.00013698,2]
[382831412,1756749048874,-480.0,0.00013698,2]
[382831414,1756749048884,-162.6,0.00013698,2]
[382831416,1756749048894,-480.0,0.00013698,2]
[382831418,1756749048904,-425.45,0.00013698,2]
[382831420,1756749048913,-593.82,0.00013698,2]
[382831422,1756749048925,-480.0,0.00013698,2]
[382831424,1756749048935,-480.0,0.00013698,2]
[382831426,1756749048945,-248.45,0.00013698,2]
[382831428,1756749048956,-480.0,0.00013698,2]
[382831430,1756749048966,-480.0,0.00013698,2]
[382831433,1756749048977,-2234.11,0.00013698,2]
[382831435,1756749048987,-480.0,0.00013698,2]
[382831437,1756749048996,-480.0,0.00013698,2]
[382831439,1756749049006,-480.0,0.00013698,2]
[382831441,1756749049016,-1000.12,0.00013698,2]
[382831443,1756749049032,-480.0,0.00013698,2]
[382831445,1756749049041,-603.56,0.00013698,2]
[382831447,1756749049051,-515.84,0.00013698,2]
[382831448,1756749049060,-480.0,0.00013698,2]
[382831450,1756749049076,-480.0,0.00013698,2]
[382831452,1756749049087,-388.77,0.00013698,2]
[382831454,1756749049097,-650.74,0.00013698,2]
[382831456,1756749049109,-480.0,0.00013698,2]
[382831457,1756749049120,-480.0,0.00013698,2]
[382831458,1756749049131,-665.86,0.00013698,2]
[382831459,1756749049142,-480.0,0.00013698,2]
[382831460,1756749049153,-480.0,0.00013698,2]
[382831461,1756749049163,-480.0,0.00013698,2]
[382831462,1756749049174,-480.0,0.00013698,2]
[382831463,1756749049184,-480.0,0.00013698,2]
[382831464,1756749049195,-483.27,0.00013698,2]
[382831465,1756749049205,-480.0,0.00013698,2]
[382831466,1756749049215,-480.0,0.00013698,2]
[382831467,1756749049227,-1479.97,0.00013698,2]
[382831468,1756749049237,-482.04,0.00013698,2]
[382831469,1756749049246,-573.74,0.00013698,2]
[382831470,1756749049256,-500.0,0.00013698,2]
[382831471,1756749049266,-151.0,0.00013699,2]
[382831472,1756749049277,-1386.936793,0.00013699,2]
[382831473,1756749049286,-151.0,0.00013699,2]
[382831474,1756749049296,-368.259611,0.00013699,2]
[382831475,1756749049306,-257.319223,0.00013699,2]
[382831476,1756749049321,-151.0,0.00013699,2]
[382831477,1756749049331,-151.0,0.00013699,2]
[382831478,1756749049340,-286.696422,0.00013699,2]
[382831479,1756749049350,-151.0,0.00013699,2]
[382831480,1756749049359,-151.0,0.00013699,2]
[382831481,1756749049369,-151.0,0.00013699,2]
[382831482,1756749049379,-152.6708,0.00013699,2]
[382831483,1756749049388,-151.0,0.00013699,2]
[382831484,1756749049398,-151.0,0.00013699,2]
[382831485,1756749049408,-160.090856,0.00013699,2]
[382831486,1756749049417,-151.0,0.00013699,2]
[382831487,1756749049427,-152.873393,0.00013699,2]
[382831488,1756749049437,-151.0,0.00013699,2]
[382831489,1756749049446,-153.94459,0.00013699,2]
[382831490,1756749049456,-198.515838,0.00013699,2]
[382831491,1756749049465,-198.515838,0.00013699,2]
[382831492,1756749049475,-198.515838,0.00013699,2]
[382831493,1756749049485,-198.515838,0.00013699,2]
[382831494,1756749049494,-151.0,0.00013699,2]
[382831495,1756749049503,-153.861965,0.00013699,2]
[382831496,1756749049513,-151.0,0.00013699,2]
[382831497,1756749049523,-151.0,0.00013699,2]
[382831498,1756749049533,-151.0,0.00013699,2]
[382831499,1756749049542,-151.0,0.00013699,2]
[382831500,1756749049552,-151.0,0.00013699,2]
[382831501,1756749049563,-151.0,0.00013699,2]
[382831502,1756749049573,-151.0,0.00013699,2]
[382831503,1756749049582,-151.0,0.00013699,2]
[382831504,1756749049591,-151.0,0.00013699,2]
[382831505,1756749049600,-151.0,0.00013699,2]
[382831506,1756749049611,-151.0,0.00013699,2]
[382831507,1756749049620,-151.0,0.00013699,2]
[382831508,1756749049629,-151.0,0.00013699,2]
[382831509,1756749049639,-151.0,0.00013699,2]
[382831510,1756749049648,-151.0,0.00013699,2]
[382831511,1756749049657,-151.0,0.00013699,2]
[382831512,1756749049667,-151.0,0.00013699,2]
[382831513,1756749049678,-151.0,0.00013699,2]
[382831514,1756749049687,-151.0,0.00013699,2]
[382831515,1756749049696,-151.0,0.00013699,2]
[382831516,1756749049706,-151.0,0.00013699,2]
[382831517,1756749049715,-292.650676,0.00013699,2]
[382831518,1756749049725,-292.650676,0.00013699,2]
[382831519,1756749049735,-292.650676,0.00013699,2]
[382831520,1756749049744,-151.0,0.00013699,2]
[382831521,1756749049754,-292.650676,0.00013699,2]
[382831522,1756749049767,-151.0,0.00013699,2]
[382831523,1756749049777,-292.650676,0.00013699,2]
[382831524,1756749049788,-292.650676,0.00013699,2]
[382831525,1756749049797,-292.650676,0.00013699,2]
[382831526,1756749049808,-292.650676,0.00013699,2]
[382831527,1756749049819,-151.0,0.00013699,2]
[382831528,1756749049829,-151.0,0.00013699,2]
[382831529,1756749049839,-151.0,0.00013699,2]
[382831530,1756749049848,-151.0,0.00013699,2]
[382831531,1756749049858,-151.0,0.00013699,2]
[382831532,1756749049869,-151.0,0.00013699,2]
[382831533,1756749049879,-151.0,0.00013699,2]
[382831534,1756749049889,-151.0,0.00013699,2]
[382831535,1756749049899,-151.0,0.00013699,2]
[382831536,1756749049908,-151.0,0.00013699,2]
[382831537,1756749049918,-151.0,0.00013699,2]
[382831538,1756749049927,-651.28118338,0.00013729,2]
[382831539,1756749049937,-160.0,0.00013767,2]
[382831540,1756749049947,-160.0,0.00013767,2]
[382831541,1756749049956,-151.0,0.00013767,2]
[382831542,1756749049966,-169.962972,0.00013767,2]
[382831543,1756749049975,-151.0,0.00013767,2]
[382831544,1756749049984,-151.0,0.00013767,2]
[382831545,1756749049993,-151.0,0.00013767,2]
[382831546,1756749050002,-151.0,0.00013767,2]
[382831547,1756749050012,-151.0,0.00013767,2]
[382831548,1756749050021,-292.650676,0.00013767,2]
[382831549,1756749050034,-292.650676,0.00013767,2]
[382831550,1756749050044,-151.0,0.00013767,2]
[382831551,1756749050053,-292.650676,0.00013767,2]
[382831552,1756749050064,-292.650676,0.00013767,2]
[382831553,1756749050074,-151.0,0.00013767,2]
[382831554,1756749050083,-151.0,0.00013767,2]
[382831555,1756749050092,-151.0,0.00013767,2]
[382831556,1756749050101,-151.0,0.00013767,2]
[382831557,1756749050111,-151.0,0.00013767,2]
[382831558,1756749050122,-160.0,0.00013767,2]
[382831559,1756749050131,-160.0,0.00013767,2]
[382831560,1756749050140,-217.44302069,0.00013767,2]
[382831561,1756749050150,-232.83393981,0.00013767,2]
[382831562,1756749050159,-417.15472785,0.00013767,2]
[382831563,1756749050169,-11366.76240249,0.00013767,2]
[382831564,1756749050179,-160.0,0.00013767,2]
[382831565,1756749050188,-530.14184084,0.00013767,2]
[382831566,1756749050198,-846.10922732,0.00013767,2]
[382831567,1756749050208,-321.65739344,0.00013767,2]
[382831568,1756749050218,-160.0,0.00013767,2]
[382831569,1756749050227,-151.0,0.00013768,2]
[382831570,1756749050236,-197.333156,0.00013768,2]
[382831571,1756749050246,-151.0,0.00013768,2]
[382831572,1756749050255,-197.333156,0.00013768,2]
[382831573,1756749050264,-151.0,0.00013768,2]
[382831574,1756749050274,-197.333156,0.00013768,2]
[382831575,1756749050284,-197.333156,0.00013768,2]
[382831576,1756749050293,-151.0,0.00013768,2]
[382831577,1756749050303,-198.515838,0.00013768,2]
[382831578,1756749050313,-198.515838,0.00013768,2]
[382831579,1756749050323,-198.515838,0.00013768,2]
[382831580,1756749050332,-198.515838,0.00013768,2]
[382831581,1756749050341,-212.6688,0.00013768,2]
[382831582,1756749050351,-151.0,0.00013768,2]
[382831583,1756749050360,-151.0,0.000138,2]
[382831584,1756749050370,-151.0,0.00013827,2]
[382831585,1756749050379,-187.78006524,0.00013827,2]
[382831586,1756749050389,-253.04049692,0.00013827,2]
[382831587,1756749050399,-10231.98744451,0.00013827,2]
[382831588,1756749050408,-2524.82941417,0.00013827,2]
[382831589,1756749050417,-250.0,0.00013827,2]
[382831590,1756749050427,-500.0,0.00013835,2]
[382831591,1756749050436,-151.0,0.00013838,2]
[382831592,1756749050446,-394.7,0.00013881,2]
[382831593,1756749050455,-2618.2481025,0.00013882,2]
[382831594,1756749050465,-71459.95558128,0.000139,2]
[382831595,1756749050474,-151.0,0.000139,2]
[382831596,1756749050484,-197.333156,0.000139,2]
[382831597,1756749050494,-151.0,0.000139,2]
[382831598,1756749050503,-197.333156,0.000139,2]
[382831599,1756749050514,-151.0,0.000139,2]
[382831600,1756749050523,-197.333156,0.000139,2]
[382831601,1756749050532,-197.333156,0.000139,2]
[382831602,1756749050542,-202.302036,0.000139,2]
[382831603,1756749050551,-198.515838,0.000139,2]
[382831604,1756749050561,-198.515838,0.000139,2]
[382831605,1756749050570,-198.515838,0.000139,2]
[382831606,1756749050580,-198.515838,0.000139,2]
[382831607,1756749050589,-151.0,0.000139,2]
[382831608,1756749050598,-151.0,0.000139,2]
[382831609,1756749050607,-151.0,0.000139,2]
[382831610,1756749050619,-161.8574316,0.000139,2]
[382831611,1756749050629,-1086.8724341,0.000139,2]
[382831612,1756749050639,-164.7571473,0.000139,2]
[382831613,1756749050648,-337.6341943,0.000139,2]
[382831614,1756749050659,-2511.18298824,0.000139,2]
[382831615,1756749050669,-151.0,0.000139,2]
[382831616,1756749050679,-292.650676,0.000139,2]
[382831617,1756749050688,-292.650676,0.000139,2]
[382831618,1756749050699,-151.0,0.000139,2]
[382831619,1756749050709,-292.650676,0.000139,2]
[382831620,1756749050718,-151.0,0.000139,2]
[382831621,1756749050728,-292.650676,0.000139,2]
[382831622,1756749050739,-193.323736,0.000139,2]
[382831623,1756749050748,-151.0,0.000139,2]
[382831624,1756749050758,-151.0,0.000139,2]
[382831625,1756749050767,-151.0,0.000139,2]
[382831626,1756749050778,-387.62860936,0.00013937,2]
[382831627,1756749050788,-651.28118338,0.00013959,2]
[382831628,1756749050798,-975.0,0.00013959,2]
[382831629,1756749050807,-632.0,0.00013959,2]
[382831630,1756749050819,-2153.0,0.00013959,2]
[382831631,1756749050829,-260.026,0.00013959,2]
[382831632,1756749050838,-166.739,0.00013969,2]
[382831633,1756749050847,-300.0,0.00013971,2]
[382831634,1756749050857,-300.0,0.00013971,2]
[382831635,1756749050866,-300.0,0.00013971,2]
[382831636,1756749050876,-300.0,0.00013971,2]
[382831637,1756749050886,-300.0,0.00013971,2]
[382831638,1756749050896,-300.0,0.00013971,2]
[382831639,1756749050906,-300.0,0.00013971,2]
[382831640,1756749050915,-300.0,0.00013971,2]
[382831641,1756749050925,-300.0,0.00013971,2]
[382831642,1756749050935,-300.0,0.00013971,2]
[382831643,1756749050945,-300.0,0.00013971,2]
[382831644,1756749050955,-300.0,0.00013971,2]
[382831645,1756749050965,-300.0,0.00013971,2]
[382831646,1756749050975,-300.0,0.00013971,2]
[382831647,1756749050985,-300.0,0.00013971,2]
[382831648,1756749050995,-600.0,0.00013971,2]
[382831649,1756749051004,-645.0,0.00013972,2]
[382831650,1756749051014,-1624.62484429,0.00013972,2]
[382831651,1756749051023,-480.0,0.00013972,2]
[382831652,1756749051037,-480.0,0.00013972,2]
[382831653,1756749051047,-480.0,0.00013972,2]
[382831654,1756749051056,-480.0,0.00013972,2]
[382831655,1756749051067,-480.0,0.00013972,2]
[382831656,1756749051076,-480.0,0.00013972,2]
[382831657,1756749051086,-480.0,0.00013972,2]
[382831658,1756749051095,-480.0,0.00013972,2]
[382831659,1756749051105,-480.0,0.00013972,2]
[382831660,1756749051114,-480.0,0.00013972,2]
[382831661,1756749051124,-151.092356,0.00013972,2]
[382831662,1756749051134,-690.55,0.00013972,2]
[382831663,1756749051143,-480.0,0.00013972,2]
[382831664,1756749051152,-480.0,0.00013972,2]
[382831665,1756749051162,-480.0,0.00013972,2]
[382831666,1756749051171,-480.0,0.00013972,2]
[382831667,1756749051181,-170.93,0.00013972,2]
[382831668,1756749051191,-480.0,0.00013972,2]
[382831669,1756749051201,-480.0,0.00013972,2]
[382831670,1756749051211,-414.03072652,0.00013972,2]
[382831671,1756749051220,-480.0,0.00013972,2]
[382831672,1756749051229,-480.0,0.00013972,2]
[382831673,1756749051239,-480.0,0.00013972,2]
[382831674,1756749051248,-480.0,0.00013972,2]
[382831675,1756749051258,-480.0,0.00013972,2]
[382831676,1756749051268,-480.0,0.00013972,2]
[382831677,1756749051277,-197.333156,0.00013972,2]
[382831678,1756749051287,-151.0,0.00013972,2]
[382831679,1756749051296,-197.333156,0.00013972,2]
[382831680,1756749051306,-151.0,0.00013972,2]
[382831681,1756749051317,-197.333156,0.00013972,2]
[382831682,1756749051326,-197.333166,0.00013972,2]
[382831683,1756749051335,-590.85,0.00013972,2]
[382831684,1756749051345,-480.0,0.00013972,2]
[382831685,1756749051355,-480.0,0.00013972,2]
[382831686,1756749051365,-480.0,0.00013972,2]
[382831687,1756749051374,-486.02,0.00013972,2]
[382831688,1756749051384,-480.0,0.00013972,2]
[382831689,1756749051393,-480.0,0.00013972,2]
[382831690,1756749051403,-480.0,0.00013972,2]
[382831691,1756749051412,-480.0,0.00013972,2]
[382831692,1756749051422,-480.0,0.00013972,2]
[382831693,1756749051432,-480.0,0.00013972,2]
[382831694,1756749051443,-480.0,0.00013972,2]
[382831695,1756749051453,-480.0,0.00013972,2]
[382831696,1756749051462,-596.87,0.00013972,2]
[382831697,1756749051471,-480.0,0.00013972,2]
[382831698,1756749051482,-480.0,0.00013972,2]
[382831699,1756749051491,-499.99,0.00013972,2]
[382831700,1756749051501,-480.0,0.00013972,2]
[382831701,1756749051511,-480.0,0.00013972,2]
[382831702,1756749051521,-198.515838,0.00013972,2]
[382831703,1756749051531,-640.66,0.00013972,2]
[382831704,1756749051541,-198.515838,0.00013972,2]
[382831705,1756749051551,-198.515838,0.00013972,2]
[382831706,1756749051710,-198.515838,0.00013972,2]
[382831707,1756749051721,-480.0,0.00013972,2]
[382831708,1756749051730,-198.515838,0.00013972,2]
[382831709,1756749051740,-198.515838,0.00013972,2]
[382831710,1756749051749,-198.515838,0.00013972,2]
[382831711,1756749051759,-198.51583,0.00013972,2]
[382831712,1756749051769,-677.2,0.00013972,2]
[382831713,1756749051779,-480.0,0.00013972,2]
[382831714,1756749051789,-558.76,0.00013972,2]
[382831715,1756749051798,-480.0,0.00013972,2]
[382831716,1756749051808,-480.0,0.00013972,2]
[382831717,1756749051820,-605.58,0.00013972,2]
[382831718,1756749051830,-480.0,0.00013972,2]
[382831719,1756749051840,-480.0,0.00013972,2]
[382831720,1756749051850,-480.0,0.00013972,2]
[382831721,1756749051859,-280.09711018,0.00013972,2]
[382831722,1756749051870,-549.19,0.00013972,2]
[382831723,1756749051880,-480.0,0.00013972,2]
[382831724,1756749051890,-480.0,0.00013972,2]
[382831725,1756749051900,-800.92,0.00013972,2]
[382831726,1756749051910,-480.0,0.00013972,2]
[382831727,1756749051919,-480.0,0.00013972,2]
[382831728,1756749051929,-480.0,0.00013972,2]
[382831729,1756749051939,-641.33,0.00013972,2]
[382831730,1756749051948,-480.0,0.00013972,2]
[382831731,1756749051958,-480.0,0.00013972,2]
[382831732,1756749051967,-151.0,0.00013972,2]
[382831733,1756749051977,-1582.94,0.00013972,2]
[382831734,1756749051986,-560.99,0.00013972,2]
[382831735,1756749051997,-1957.4,0.00013972,2]
[382831736,1756749052007,-480.0,0.00013972,2]
[382831737,1756749052017,-151.0,0.00013972,2]
[382831738,1756749052029,-686.72,0.00013972,2]
[382831739,1756749052039,-480.0,0.00013972,2]
[382831740,1756749052050,-480.0,0.00013972,2]
[382831741,1756749052059,-480.0,0.00013972,2]
[382831742,1756749052073,-480.0,0.00013972,2]
[382831743,1756749052083,-480.0,0.00013972,2]
[382831744,1756749052093,-480.0,0.00013972,2]
[382831745,1756749052102,-504.15,0.00013972,2]
[382831746,1756749052113,-480.0,0.00013972,2]
[382831747,1756749052123,-420.88699102,0.00013972,2]
[382831748,1756749052133,-873.22,0.00013972,2]
[382831749,1756749052143,-504.05,0.00013972,2]
[382831750,1756749052153,-480.0,0.00013972,2]
[382831751,1756749052162,-480.0,0.00013972,2]
[382831752,1756749052171,-480.0,0.00013972,2]
[382831753,1756749052180,-538.94,0.00013972,2]
[382831754,1756749052190,-3261.24,0.00013972,2]